Cogmind - Beta 17.1 @@@ ROGUE MODE // 2026.09.21 @ 18:23:59 Player: Caluan Result: Destroyed by Y-45 Defender with Heavy Assault Rifle Performance ------------- Evolutions (1) 500 Regions Visited (3) 600 Robots Destroyed (31) 155 Value Destroyed (923) 923 Prototype IDs (0) 0 Alien Tech Used (0) 0 Bonus (0) 0 TOTAL SCORE: 2178 Bonus ------- None Cogmind --------- Core Integrity 0/400 Matter 300/300 Energy 100/100 System Corruption 0% Temperature Cool (0) Movement Treading (160) Location -9/Materials Parts ------- > --- POWER (1) -------- (None) > --- PROPULSION (2) --- Light Treads > --- UTILITY (4) ------ Large Storage Unit Improved Targeting Computer > --- WEAPON (2) ------- (None) > --- INVENTORY (15) --- Improved Ion Engine Light Treads Light Treads Aluminum Leg Aluminum Leg Wheel Wheel High-capacity Storage Unit Peak State ------------ > --- POWER ------------ Improved Ion Engine > --- PROPULSION ------- Wheel Wheel > --- UTILITY ---------- Large Storage Unit Improved Targeting Computer > --- WEAPON ----------- Particle Gun > --- INVENTORY -------- Improved Ion Engine Light Treads Light Treads Light Treads Light Treads Light Treads Aluminum Leg Aluminum Leg High-capacity Storage Unit [Rating: 10] Favorites ----------- Power Light Ion Engine Engine Light Ion Engine Propulsion Aluminum Leg Treads Light Treads Leg Aluminum Leg Wheel Wheel Utility Large Storage Unit Storage Large Storage Unit Processor Targeting Computer Weapon Light Cannon Energy Gun Particle Gun Ballistic Gun Assault Rifle Ballistic Cannon Light Cannon Launcher Grenade Launcher Build | -11 -10 -10 -9 ------- Run | Yrd Mat Min Mat Slots Evolved 2 | . . . 2 Power . | . . . . Propulsion . | . . . . Utility 2 | . . . 2 Weapon . | . . . . Parts Attached 30 | 6 8 . 16 Power 7 | 1 2 . 4 Engine 7 | 1 2 . 4 Core . | . . . . Reactor . | . . . . Propulsion 12 | 2 . . 10 Treads 4 | . . . 4 Leg 6 | 2 . . 4 Wheel 2 | . . . 2 Hover . | . . . . Flight . | . . . . Utility 4 | 1 2 . 1 Device . | . . . . Storage 2 | 1 1 . . Processor 2 | . 1 . 1 Hackware . | . . . . Protection . | . . . . Artifact . | . . . . Weapon 7 | 2 4 . 1 Energy Gun 1 | . . . 1 Energy Cannon . | . . . . Ballistic Gun 2 | 2 . . . Ballistic Cannon 3 | . 3 . . Launcher 1 | . 1 . . Special Weapon . | . . . . Impact Weapon . | . . . . Slashing Weapon . | . . . . Piercing Weapon . | . . . . Special Melee Weapon . | . . . . Unidentified Prototypes . | . . . . Parts Lost 15 | . 4 . 11 Power 4 | . 2 . 2 Propulsion 6 | . . . 6 Utility . | . . . . Weapon 5 | . 2 . 3 Highest Loss Streak 3 | . 3 . 3 To Critical Strikes . | . . . . Average Backups 5 | . 5 7 6 Power . | . . . . Propulsion 4 | . 3 5 4 Utility . | . . 1 1 Weapon 1 | . 1 1 . Tool/Special . | . . . . Unused Backups 3 | . . . 3 Power 1 | . . . 1 Propulsion 1 | . . . 1 Utility 1 | . . . 1 Weapon . | . . . . Tool/Special . | . . . . Average Slot Usage (%) 73 | . 82 85 61 Engine 12 | . 12 14 10 Leg 21 | . 28 28 12 Wheel 2 | . . . 6 Storage 12 | . 14 14 11 Processor 7 | . 3 14 11 Ballistic Gun 1 | . 4 . . Ballistic Cannon 12 | . 18 14 5 Peak Build Rating 10 | 6 7 6 10 Average Rating 6 | 4 5 6 6 On Entrance 4 | . 6 6 6 Avg Prop Armor Cover (%) . | . . . . Naked Turns . | . . . . Heaviest Build 30 | 11 29 28 30 Greatest Support 40 | 20 20 20 40 Greatest Overweight (x) 2 | . 1 1 2 Average Overweight (x) . | . . 1 . Largest Inventory Capacity 15 | 8 15 15 15 Average Capacity 12 | 7 11 15 15 Most Carried 9 | 2 8 7 9 Average Carried 5 | . 5 7 6 Final Capacity 15 | 8 15 15 15 Final Carried 8 | 1 7 7 8 Class Distribution -------------------- 100% | Mutant Dominant Class ---------------- Mutant | -10/Materials Mutant | -10/Mines Mutant | -9/Materials Resources | -11 -10 -10 -9 ----------- Run | Yrd Mat Min Mat Matter Collected 846 | 244 294 . 308 Remotely . | . . . . Salvage Created 842 | . 453 . 389 Parts 45 | . 28 . 17 Haulers Intercepted 3 | . 2 . 1 Recyclers Shooed . | . . . . Parts Field Recycled . | . . . . Retrieved Matter . | . . . . Parts Self-Destructed . | . . . . Prevented . | . . . . Parts Restored . | . . . . Kills | -11 -10 -10 -9 ------- Run | Yrd Mat Min Mat Combat Hostiles Destroyed 24 | . 14 . 10 Guns 2 | . 2 . . Cannons 13 | . 8 . 5 AOE 9 | . 4 . 5 Classes Destroyed 8 | . 6 . 2 Worker 1 | . . . 1 Builder 1 | . 1 . . Hauler 3 | . 2 . 1 Mechanic 1 | . 1 . . Watcher 1 | . 1 . . Swarmer 3 | . 3 . . Grunt 18 | . 11 . 7 Sentry 3 | . . . 3 Best Kill Streak 5 | . 5 . 5 Combat Bots Only 5 | . 3 . 5 Max Kills in Single Turn 4 | . 4 . 2 Gunslinging . | . . . . Exploded 2 | . 2 . 2 Melee . | . . . . Uniques/NPCs Destroyed . | . . . . Combat | -11 -10 -10 -9 -------- Run | Yrd Mat Min Mat Hostile Shots Fired 191 | . 69 . 122 Missed 48 | . 18 . 30 Hits 143 | . 51 . 92 Projectile 143 | . 51 . 92 Critical Strikes 2 | . . . 2 Damage Taken 2304 | . 757 . 1547 Core 585 | . 184 . 401 Absorbed by Shields . | . . . . Core Remaining (%) 63 | 100 . 26 . Volleys Fired 79 | . 46 . 33 Largest 2 | . 2 . 1 Hottest 65 | . 60 . 65 Shots Fired 120 | . 87 . 33 Gun 28 | . 23 . 5 Cannon 87 | . 63 . 24 Launcher 5 | . 1 . 4 Special . | . . . . Kinetic 110 | . 86 . 24 Thermal 5 | . . . 5 Explosive 5 | . 1 . 4 Electromagnetic . | . . . . Robot Hit Streak 8 | . 5 . 8 Robot Miss Streak 7 | . 7 . 1 Penetration Max . | . . . . Secondary Targets 1 | . 1 . . Max Gunslinging Chain 1 | . 1 . . Shots Hit Robots 76 | . 49 . 27 Core Hits 49 | . 22 . 27 Critical Kills . | . . . . Critical Parts Destroyed . | . . . . Critical Strikes 1 | . . . 1 Blast 1 | . . . 1 Melee Attacks . | . . . . Impact . | . . . . Slashing . | . . . . Piercing . | . . . . Sneak Attacks . | . . . . Combat Hostiles . | . . . . Follow-up Attacks . | . . . . Damage Inflicted 2376 | . 1470 . 906 Guns 251 | . 187 . 64 Cannons 1009 | . 643 . 366 Explosions 956 | . 613 . 343 Melee . | . . . . Ramming 160 | . 27 . 133 Kinetic 1196 | . 830 . 366 Thermal 548 | . 484 . 64 Explosive 472 | . 129 . 343 Electromagnetic . | . . . . Impact . | . . . . Slashing . | . . . . Piercing . | . . . . Highest Corruption . | . . . . Average Corruption . | . . . . Corruption Purged . | . . . . Corruption Blocked . | . . . . Overload Shots . | . . . . Overflow Damage 228 | . 190 . 38 Projectiles 17 | . 17 . . Explosions 211 | . 173 . 38 Melee . | . . . . Knockbacks 19 | . 12 . 7 Impact . | . . . . Kinetic 18 | . 12 . 6 Secondary 1 | . . . 1 Self-Inflicted Damage 388 | . 183 . 205 Shots 5 | . 2 . 3 Rammed 48 | . . . 48 Targets Rammed 57 | . 4 . 53 Kicked 9 | . 4 . 5 Crushed . | . . . . Highest Temperature 107 | . 67 . 107 Average Temperature 26 | . 24 . 30 Received Heat Transfer 816 | . 264 . 552 Siege Activations . | . . . . Martial Activations . | . . . . Shielding Activations . | . . . . Robots Disrupted . | . . . . Combat Hostiles . | . . . . Robots Corrupted . | . . . . Combat Hostiles . | . . . . Parts Fried . | . . . . Impact Corruptions . | . . . . Robots Melted . | . . . . Combat Hostiles . | . . . . Parts Melted . | . . . . Heat Transferred 448 | . 300 . 148 Parts Sabotaged . | . . . . Parts Stolen . | . . . . Parts Stripped . | . . . . Power Chain Reactions . | . . . . Alert | -11 -10 -10 -9 ------- Run | Yrd Mat Min Mat Maximum Alert Level 1 | . 1 . . Low Security (%) 96 | 100 91 100 100 Level 1 3 | . 8 . . Level 2 . | . . . . Level 3 . | . . . . Level 4 . | . . . . Level 5 . | . . . . High Security . | . . . . Max Security . | . . . . Peak Influence 218 | . 218 16 181 Initial 16 | . . 16 . Average 71 | . 108 2 56 Influence Increases 788 | . 425 . 363 Destroy 0b10 Robot/C 480 | . 280 . 200 Destroy 0b10 Robot/NC 35 | . 25 . 10 Destroy Leader 118 | . 56 . 62 Successful Hack 14 | . 14 . . Disable Machine 60 | . 30 . 30 Destroy Structure 66 | . 20 . 46 Lose Combat Pursuer 15 | . . . 15 Influence Decreases 768 | . 382 43 343 Entered New Map 27 | . . 27 . Time Decay 621 | . 342 16 263 Lost Part 120 | . 40 . 80 Squads Dispatched 2 | . 2 . . Investigation 1 | . 1 . . Extermination . | . . . . Reinforcement 1 | . 1 . . Assault . | . . . . Garrison . | . . . . Intercept . | . . . . Searches Triggered . | . . . . Construction Impeded . | . . . . Haulers Reinforced . | . . . . Active Scanning Responses . | . . . . Cargo Convoy Interrupts . | . . . . Stealth | -11 -10 -10 -9 --------- Run | Yrd Mat Min Mat Distress Signals 1 | . . . 1 Communications Jammed . | . . . . Distress Signals . | . . . . Times Spotted 40 | . 23 . 17 Peak Tracking Total 6 | . 3 . 6 Tactical Retreats 1 | . . . 1 Traps | -11 -10 -10 -9 ------- Run | Yrd Mat Min Mat Traps Triggered 1 | . 1 . . Indirectly . | . . . . Trap Hack Attempts . | . . . . Triggered . | . . . . Disarmed . | . . . . Reprogrammed . | . . . . Reused . | . . . . Traps Extracted . | . . . . Installed . | . . . . Triggered . | . . . . Machines | -11 -10 -10 -9 ---------- Run | Yrd Mat Min Mat Machines Disabled 4 | . 2 . 2 Max in Single Turn 2 | . 2 . 2 Machines Repaired . | . . . . Machines Dismantled . | . . . . Machines Sabotaged . | . . . . Overloaded Fab Kills . | . . . . Hacking | -11 -10 -10 -9 --------- Run | Yrd Mat Min Mat Machines Accessed 6 | . 4 . 2 Terminals 6 | . 4 . 2 Fabricators . | . . . . Repair Stations . | . . . . Recycling Units . | . . . . Scanalyzers . | . . . . Garrison Access . | . . . . Total Hacks 10 | . 6 . 4 Successful 5 | . 3 . 2 Failed 5 | . 3 . 2 Catastrophic 1 | . 1 . . Database Lockouts . | . . . . Manual 10 | . 6 . 4 Terminals 10 | . 6 . 4 Fabricators . | . . . . Repair Stations . | . . . . Recycling Units . | . . . . Scanalyzers . | . . . . Garrison Access . | . . . . Terminal Hacks . | . . . . Fabricator Hacks . | . . . . Repair Station Hacks . | . . . . Recycling Unit Hacks . | . . . . Scanalyzer . | . . . . Garrison Access Hacks . | . . . . Unauthorized Hacks 5 | . 3 . 2 Terminals 5 | . 3 . 2 Botnet 5 | . 3 . 2 Fabricators . | . . . . Repair Stations . | . . . . Recycling Units . | . . . . Scanalyzers . | . . . . Garrison Access . | . . . . Data Cores Recovered . | . . . . Used . | . . . . Hacking Detections 5 | . 4 . 1 Full Trace Events . | . . . . Feedback Events . | . . . . Feedback Blocked . | . . . . Robot Schematics Acquired . | . . . . Robots Built . | . . . . Authchips . | . . . . Time . | . . . . Total Robot Build Rating . | . . . . Part Schematics Acquired . | . . . . Parts Built . | . . . . Authchips . | . . . . Time . | . . . . Total Part Build Rating . | . . . . Part Studies Acquired . | . . . . Parts Repaired . | . . . . Time . | . . . . Parts Recycled . | . . . . Recycled Matter . | . . . . Retrieved Matter . | . . . . Retrieved Components . | . . . . Parts Scanalyzed . | . . . . Part Schematics Acquired . | . . . . Parts Damaged . | . . . . Bothacking | -11 -10 -10 -9 ------------ Run | Yrd Mat Min Mat Used RIF Installer . | . . . . Robots Hacked . | . . . . Non-combat . | . . . . Combat . | . . . . Robot Hacks Applied . | . . . . Relay Couplers Released . | . . . . Fabnet Peak Effective % . | . . . . Robots Rewired . | . . . . Allies Hacked . | . . . . Hacks Repelled . | . . . . Allies | -11 -10 -10 -9 -------- Run | Yrd Mat Min Mat Total Allies . | . . . . Largest Group . | . . . . Highest-Rated Group . | . . . . Highest-Rated Ally . | . . . . Total Orders . | . . . . Ally Attacks . | . . . . Total Damage . | . . . . Kills . | . . . . Allies Corrupted . | . . . . Allies Melted . | . . . . Intel | -11 -10 -10 -9 ------- Run | Yrd Mat Min Mat Active Infowar (turns) . | . . . . Robot Analysis Total . | . . . . Derelict Logs Recovered 1 | . . 1 . Drone Launches . | . . . . Drone Recoveries . | . . . . Exploration | -11 -10 -10 -9 ------------- Run | Yrd Mat Min Mat Turns Passed 1849 | 79 827 192 751 Spaces Moved 960 | 68 424 102 366 Core 21 | 21 . . . Treads 2 | . . . 2 Legs 748 | 47 424 102 175 Wheels 189 | . . . 189 Hover . | . . . . Flight . | . . . . Fastest Speed 50 | 50 120 190 95 Average Speed 146 | 98 147 190 140 Slowest Speed 260 | 120 190 190 260 Overloaded Moves . | . . . . Propulsion Burnouts . | . . . . Robots Hopped . | . . . . Potential Cave-ins . | . . . . Cave-ins Triggered . | . . . . Exploration Rate (%) 39 | 3 89 36 30 Regions Visited 3 Branch Regions 1 Pre-discovered Areas 1 | . . 1 . Known Exits Taken . | . . . . Unknown Exits Taken 3 | 1 1 1 . Scrap Searched . | . . . . Spaces Dug . | . . . . Terrain Destroyed 67 | . 18 . 49 Melee . | . . . . Projectile . | . . . . AOE 67 | . 18 . 49 Terrain Rammed . | . . . . Walls Destroyed . | . . . . Machines Disabled . | . . . . Actions | -11 -10 -10 -9 --------- Run | Yrd Mat Min Mat Total 1249 | 80 535 101 533 Wait 86 | . 38 . 48 Move 957 | 67 423 101 366 Hop . | . . . . Pick Up 31 | 7 12 . 12 Fast Attach 2 | . 1 . 1 Attach 18 | 6 4 . 8 Detach . | . . . . Swap 12 | . 4 . 8 Drop 7 | . 3 . 4 Fire 79 | . 46 . 33 Melee . | . . . . Ram 2 | . . . 2 Kick 9 | . 4 . 5 Crush 46 | . . . 46 Escape Stasis . | . . . . Rewire . | . . . . Trap . | . . . . Miscellaneous . | . . . . Route ------- -11/Scrapyard -10/Materials (discovered 5 exits: *Mat x3 / [*Min x2]) -10/Mines (discovered 2 exits: *Mat x2) -9/Materials (discovered 2 exits: [*Sto x2]) History --------- Turn | Location | Event 8 | -11/Scrapyard | Discovered new exit (range 15) 80 | -11/Scrapyard | Entered Materials 81 | -10/Materials | Met a group of wandering Federalists 306 | -10/Materials | Discovered new exit (range 9) 309 | -10/Materials | Build established: Mutant 339 | -10/Materials | Core integrity fell below 50% 472 | -10/Materials | Discovered new exit (range 3) 579 | -10/Materials | Discovered new exit (range 7) 653 | -10/Materials | Lost 3 parts (1p2w) 706 | -10/Materials | Discovered new exit (range 13) 853 | -10/Materials | Discovered new exit (range 8) 907 | -10/Materials | Entered Mines 925 | -10/Mines | Learned location of Zion (-6) 957 | -10/Mines | Discovered new exit (range 7) 993 | -10/Mines | Discovered new exit (range 7) 1099 | -10/Mines | Entered Materials 1099 | -9/Materials | Evolved 2 slots: Utility x2 1265 | -9/Materials | Discovered new exit (range 13) 1505 | -9/Materials | Lost 3 parts (1p1n1w) 1565 | -9/Materials | Lost 3 parts (2n1w) 1761 | -9/Materials | Core integrity fell below 50% 1798 | -9/Materials | Discovered new exit (range 10) 1818 | -9/Materials | Core integrity fell below 20% 1850 | -9/Materials | Destroyed by Y-45 Defender with Heavy Assault Rifle Last Messages --------------- 01674_ Acquired 2 matter. 01677_ U-05 Engineer lays Concrete. 01703_ Acquired Lgt. Treads. 01711_ Acquired Imp. Ion Engine. 01714_ Dropped Ion Engine. 01715_ Acquired Imp. Ion Engine. 01766_ Particle Gun destroyed. 01767_ Slammed into Y-45 Defender. 01778_ Critical hit (Burn: +37). 01779_ Slammed into Y-45 Defender. 01798_ EXIT=FOUND 01799_ Slammed into Y-45 Defender. 01826_ Lgt. Treads destroyed. 01827_ Slammed into Y-45 Defender. 01830_ Acquired 9 matter. 01830_ Slammed into Y-45 Defender. 01832_ Imp. Ion Engine destroyed. 01833_ Slammed into Y-45 Defender. 01835_ Lgt. Treads destroyed. 01836_ Slammed into Y-45 Defender. Map ----- +----------------------------------------------------+ | | | | | | | | | | | | | | | | | | | | | | | | | | | | | | | | | | | | | | | | | | | | | | | ??????????##########?????????????????????????????? | | ?????????# #???###########???????????????? | | ?????????# #???#Y@ ! #???????????????? | | ########## #???#%%""" #???????????????? | | # #???#%""""" #???????????????? | | + #???#%""""" #???????????????? | | # #???#%""""" #???????????????? | | ###### # [ #???#% """%% #???????????????? | | #??# # #???#% %%%% #???????????????? | | " #??# ###########???#%%%%%%% #???????????????? | | " #??# # #########+######## #??????? | | " #??# # # %%% #??????? | | #### #??"" """ + % % % #??????? | | # #??"" """ # % % #??????? | | # #??"" """ # %#####+######## #??????? | | #?? ?# #??? ??????????###??????? | | # #??######?# #??? ???????????????????? | | + #??######## #?? = ???????????????????? | | # #??# ! * # #??[ ???????????????????? | | # #??# ! # #? ???????????????????? | | # #??# # #? < ???????????????????? | | ^^#??# + ## ???????????????????? | | # #??# # ## = ???????????????????? | | # #??# # ## ???????????????????? | | ## # # ########### ## ???????????????????? | | # ## #? ???????????????????? | | ###### #?????????????????????????? | +----------------------------------------------------+ Best States ------------- Heat Dissipation 28 Energy Generation 12 Energy Capacity 265 Matter Stores 300 Matter Capacity 300 Sight Range 16 Terrain Scan Density 10 Evasion (%) 55 Targeting Accuracy 6 Recoil Reduction 2 Item Schematics ----------------- None Robot Schematics ------------------ None Fabricated ------------ Nothing Repaired ---------- Nothing Studied --------- None Alien Tech Used ----------------- None Achievements -------------- None Challenges ------------ None Game ------ Seed FireLobotomyChaincannon Manual? 0 Play Time 00:10:36 Cumulative 311.5 hours Start 2026.09.21 @ 18:14:13 End 2026.09.21 @ 18:23:59 Sessions 1 Manual Loads 0 Difficulty Rogue Special Mode None Game No. 340 Rogue 340 Adventurer 0 Explorer 0 Win Type - Total 3 Types 3/0/0/0/0/0/0/0/0/0 Lore% 50 Gallery% 59 Achievement% 45 Wizard Run 0 Options --------- Layout 1 ASCII 0 Keyboard 0 Movement Numpad Keybinds 0 Fullscreen 2 Font 24/Smallcaps Map View 50x35 Zoom Use 0% Tactical HUD 1 Map Filters NONE Filters NONE Steam 1 RUN: c87738e2-3dac-4c74-b3ab-6aa73200fd97